{"text_format":"1","workbook":"xlsx","n_sheets":2,"sheets":["Sheet1","Sheet3"],"not_rendered":{"charts":0,"images":0,"macros":1,"external_links":0,"defined_names":2,"comments":0,"pivot_tables":0},"unopened":[],"bounds":{"document_bytes":16777216,"sheet_cells":100000,"rows_first":2000,"rows_last":500,"rows_between":2000,"halvings":0,"cell_chars":16384,"cell_head_chars":4096},"cells_cut":0,"cells_raw":0,"read":"whole","date_system":"1900"}

{"sheet":"Sheet1","index":0,"n_rows":102,"n_cols":52,"rows_kept":102,"cut":false,"hidden":false,"merged":[[101,29,101,30],[98,12,98,15],[84,24,84,25],[84,37,84,38],[91,32,91,33],[90,32,90,33],[93,31,93,32],[97,21,97,22],[84,12,84,15],[58,8,58,9],[61,12,61,15],[59,38,59,39],[78,32,78,33],[58,12,58,15],[69,38,69,39],[70,12,70,15],[75,32,75,33],[65,32,65,33],[43,32,43,33],[9,11,9,12],[12,5,12,7],[12,20,12,21],[53,61,53,63],[49,33,49,34],[72,27,72,28],[46,12,46,15],[46,40,46,41],[97,41,97,42],[56,11,56,16],[1,1,4,47],[24,38,24,39],[28,33,28,34],[35,38,35,39],[39,32,39,33],[12,32,12,33],[9,36,9,37],[17,4,17,7],[17,8,17,9],[17,19,17,22],[17,23,17,24],[17,32,17,35],[17,36,17,37],[24,18,24,21],[35,18,35,21]]}
[]
[null,"N4 Lifeskills - Area 2                                                                                                                                                                   Created by Mr.Lafferty@mathsrevision.com                                                                                                                                                                                                                                               "]
[]
[]
[]
[]
[null,"Q1.",null,"Calculate the area of the basic shapes below."]
[]
[]
[null,null,null,null,null,null,null,null,null,null,null,{"$f":"ROUND(RAND()*(9-4)+4,0)","v":7},null,"cm",null,null,null,null,null,null,null,null,null,null,null,null,null,null,null,null,null,null,null,null,null,null,{"$f":"ROUND(RAND()*(15-6)+6,0)","v":10},null,"cm"]
[null,null,null,null,null,null,null,null,null,null,null,null,null,null,null,null,null,null,null,null,null,null,null,null,null,null,null,null,null,null,null,null,null,null,null,null,null,null,null,null,null,null,null,null,null,null,null,null,null,null,null,{"$f":"ROUND(F13*L10,1)","v":144.9}]
[]
[null,null,null,null,null,{"$f":"ROUND(RAND()*(30-18)+18,1)","v":20.7},null,null,"cm",null,null,null,null,null,null,null,null,null,null,null,{"$f":"ROUND(RAND()*(15-6)+6,0)","v":12},null,"cm",null,null,null,null,null,null,null,null,null,{"$f":"ROUND(RAND()*(15-6)+6,1)","v":11},null,"cm",null,null,null,null,null,null,null,null,null,null,null,null,null,null,null,null,{"$f":"ROUND(U13*U13,1)","v":144}]
[]
[null,null,null,null,null,null,null,null,null,null,null,null,null,null,null,null,null,null,null,null,null,null,null,null,null,null,null,null,null,null,null,null,null,null,null,null,null,null,null,null,null,null,null,null,null,null,null,null,null,null,null,{"$f":"ROUND(AG13*AK10*0.5,1)","v":55}]
[null,null,"Answer to 1 decimal place"]
[]
[null,null,null,null,null,null,null,null,"cm2",null,null,null,null,null,null,null,null,null,null,null,null,null,null,"cm2",null,null,null,null,null,null,null,null,null,null,null,null,"cm2"]
[]
[]
[null,"Q2.",null,"Calculate the are of the rhombus."]
[]
[]
[]
[null,null,null,null,null,null,null,null,null,"Answer to 1 decimal place",null,null,null,null,null,null,null,null,null,null,null,null,"m2",null,null,null,null,null,null,null,null,null,null,null,null,null,null,null,{"$f":"ROUND(RAND()*(15-6)+6,1)","v":6.9},null,"m",null,null,null,null,null,null,null,null,null,null,{"$f":"ROUND(0.5*AM25*AH29,1)","v":13.8}]
[]
[]
[]
[null,null,null,null,null,null,null,null,null,null,null,null,null,null,null,null,null,null,null,null,null,null,null,null,null,null,null,null,null,null,null,null,null,{"$f":"ROUND(RAND()*(9-4)+4,0)","v":4},null,"m"]
[]
[]
[null,"Q3.",null,"Calculate the area of the parallelogram."]
[]
[]
[]
[null,null,null,null,null,null,null,null,"Answer to 1 decimal place",null,null,null,null,null,null,null,null,null,null,null,null,null,"m2",null,null,null,null,null,null,null,null,null,null,null,null,null,null,null,{"$f":"ROUND(RAND()*(15-6)+6,1)","v":8},null,"m",null,null,null,null,null,null,null,null,null,null,{"$f":"ROUND(AG40*AM36,1)","v":72}]
[]
[]
[]
[null,null,null,null,null,null,null,null,null,null,null,null,null,null,null,null,null,null,null,null,null,null,null,null,null,null,null,null,null,null,null,null,{"$f":"ROUND(RAND()*(9-4)+4,0)","v":9},null,"m"]
[]
[]
[null,"Q4.",null,"Calculate the area of the composite shape."]
[null,null,null,null,null,null,null,null,null,null,null,null,null,null,null,null,null,null,null,null,null,null,null,null,null,null,null,null,null,null,null,null,{"$f":"ROUND(AH50*0.7,0)","v":13},null,"cm"]
[]
[]
[null,null,"Answer to 1 decimal place",null,null,null,null,null,null,null,null,null,null,null,null,null,"cm2",null,null,null,null,null,null,null,null,null,null,null,null,null,null,null,null,null,null,null,null,null,null,null,{"$f":"ROUND((AH50-AG44)+ROUND(RAND()*(3-1)+1,0),0)","v":7},null,"cm",null,null,null,null,null,null,null,null,{"$f":"(AG44*AO47)+0.5*(AH50-AG44)*AO47","v":108.5}]
[]
[]
[null,null,null,null,null,null,null,null,null,null,null,null,null,null,null,null,null,null,null,null,null,null,null,null,null,null,null,null,null,null,null,null,null,{"$f":"ROUND(RAND()*(20-(14))+(14),0)","v":18},null,"cm"]
[]
[]
[]
[]
[null,"Q5. Calculate the area and perimeter of the circle to 2 decimal places."]
[]
[null,null,null,null,null,null,null,null,null,null,null,"Take π = 3.14"]
[]
[null,null,null,null,null,null,null,null,"Area",null,null,null,null,null,null,null,"cm2",null,null,null,null,null,null,null,null,null,null,null,null,null,null,null,null,null,null,null,null,null,null,null,null,null,null,null,null,null,null,null,null,null,null,{"$f":"ROUND(3.14*(AM60/2)*(AM60/2),2)","v":63.59}]
[null,null,null,null,null,null,null,null,null,null,null,null,null,null,null,null,null,null,null,null,null,null,null,null,null,null,null,null,null,null,null,null,null,null,null,null,null,null,{"$f":"ROUND(RAND()*(12-(9))+(9),0)","v":9},null,"cm"]
[]
[null,null,null,null,null,null,null,null,"Perimeter",null,null,null,null,null,null,null,"cm",null,null,null,null,null,null,null,null,null,null,null,null,null,null,null,null,null,null,null,null,null,null,null,null,null,null,null,null,null,null,null,null,null,null,{"$f":"ROUND(3.14*AM60,2)","v":28.26}]
[]
[]
[]
[null,null,null,null,null,null,null,null,null,null,null,null,null,null,null,null,null,null,null,null,null,null,null,null,null,null,null,null,null,null,null,null,{"$f":"ROUND(0.48*AG76,1)","v":4.3},null,"m"]
[null,"Q6.",null,"Calculate the area of the arrow."]
[]
[]
[null,null,null,null,null,null,null,null,null,null,null,null,null,null,null,null,null,null,null,null,null,null,null,null,null,null,null,null,null,null,null,null,null,null,null,null,null,null,{"$f":"ROUND(RAND()*(30-(20))+(20),0)","v":23},null,"m"]
[null,null,"Answer to 1 decimal place",null,null,null,null,null,null,null,null,null,null,null,null,null,"m2",null,null,null,null,null,null,null,null,null,null,null,null,null,null,null,null,null,null,null,null,null,null,null,null,null,null,null,null,null,null,null,null,null,null,{"$f":"ROUND(AG66*(AM70-AB73)+(0.5*AG76*AB73),1)","v":100}]
[]
[null,null,null,null,null,null,null,null,null,null,null,null,null,null,null,null,null,null,null,null,null,null,null,null,null,null,null,{"$f":"ROUND(0.23*AM70,1)","v":5.3},null,"m"]
[]
[]
[null,null,null,null,null,null,null,null,null,null,null,null,null,null,null,null,null,null,null,null,null,null,null,null,null,null,null,null,null,null,null,null,{"$f":"ROUND(RAND()*(12-(8))+(8),0)","v":9},null,"m"]
[]
[]
[null,null,null,null,null,null,null,null,null,null,null,null,null,null,null,null,null,null,null,null,null,null,null,null,null,null,null,null,null,null,null,null,{"$f":"ROUND(RAND()*(12-(8))+(8),0)","v":12},null,"m"]
[]
[null,"Q7.",null,"Calculate the area of the composite shape."]
[]
[]
[]
[null,null,"Answer to 1 decimal place",null,null,null,null,null,null,null,null,null,null,null,null,null,"m2",null,null,null,null,null,null,null,{"$f":"ROUND(RAND()*(30-(20))+(20),0)","v":24},null,"m",null,null,null,null,null,null,null,null,null,null,{"$f":"ROUND(Y85*0.85,1)","v":20.399999999999999},null,"m",null,null,null,null,null,null,null,null,null,null,null,{"$f":"ROUND((AG91*AL85)+(AG79*(Y85-AL85)),1)","v":130.9}]
[]
[]
[]
[]
[]
[null,null,null,null,null,null,null,null,null,null,null,null,null,null,null,null,null,null,null,null,null,null,null,null,null,null,null,null,null,null,null,null,{"$f":"ROUND(RAND()*(5-(2))+(2),1)","v":4.3},null,"m"]
[]
[]
[null,null,null,null,null,null,null,null,null,null,null,null,null,null,null,null,null,null,null,null,null,null,null,null,null,null,null,null,null,null,null,{"$f":"ROUND(RAND()*(30-(20))+(20),0)","v":29},null,"m"]
[null,"Q8.",null,"Calculate the area of the blue shaded part."]
[]
[]
[null,null,null,null,null,null,null,null,null,null,null,null,null,null,null,null,null,null,null,null,null,{"$f":"ROUND(AF94*0.46,1)","v":13.3},null,"m",null,null,null,null,null,null,null,null,null,null,null,null,null,null,null,null,null,{"$f":"ROUND(V98*0.73,1)","v":9.6999999999999993},null,"m"]
[null,null,"Answer to 1 decimal place",null,null,null,null,null,null,null,null,null,null,null,null,null,"m2",null,null,null,null,null,null,null,null,null,null,null,null,null,null,null,null,null,null,null,null,null,null,null,null,null,null,null,null,null,null,null,null,null,null,{"$f":"ROUND((AF94*V98)-(AD102*AP98),1)","v":273.2}]
[]
[]
[null,null,null,null,null,null,null,null,null,null,null,null,null,null,null,null,null,null,null,null,null,null,null,null,null,null,null,null,null,{"$f":"ROUND(AF94*0.4,1)","v":11.6},null,"m"]

{"sheet":"Sheet3","index":1,"n_rows":0,"n_cols":0,"rows_kept":0,"cut":false,"hidden":false,"merged":[]}